fUSD/lending_fUSD_20260406
["ID","MTS","AMOUNT","RATE_DAILY","PERIOD"]
[419909734,1775497842387,-500.0,0.00013698,2]
[419909735,1775497842396,-500.0,0.00013698,2]
[419909736,1775497842405,-500.0,0.00013698,2]
[419909737,1775497842414,-500.0,0.00013698,2]
[419909738,1775497842424,-500.0,0.00013698,2]
[419909739,1775497842433,-500.0,0.00013698,2]
[419909740,1775497842443,-500.0,0.00013698,2]
[419909741,1775497842452,-597.32595487,0.00013698,2]
[419909742,1775497842463,-500.0,0.00013698,2]
[419909743,1775497842472,-500.0,0.00013698,2]
[419909744,1775497842482,-500.0,0.00013698,2]
[419909745,1775497842491,-500.0,0.00013698,2]
[419909746,1775497842500,-500.0,0.00013698,2]
[419909747,1775497842509,-500.0,0.00013698,2]
[419909748,1775497842519,-500.0,0.00013698,2]
[419909749,1775497842528,-500.0,0.00013698,2]
[419909750,1775497842537,-500.0,0.00013698,2]
[419909751,1775497842546,-500.0,0.00013698,2]
[419909752,1775497842555,-500.0,0.00013698,2]
[419909753,1775497842565,-500.0,0.00013698,2]
[419909754,1775497842574,-500.0,0.00013698,2]
[419909755,1775497842583,-500.0,0.00013698,2]
[419909756,1775497842592,-500.0,0.00013698,2]
[419909757,1775497842602,-500.0,0.00013698,2]
[419909758,1775497842611,-500.0,0.00013698,2]
[419909759,1775497842620,-500.0,0.00013698,2]
[419909760,1775497842629,-500.0,0.00013698,2]
[419909761,1775497842639,-500.0,0.00013698,2]
[419909762,1775497842648,-500.0,0.00013698,2]
[419909763,1775497842657,-500.0,0.00013698,2]
[419909764,1775497842667,-500.0,0.00013698,2]
[419909765,1775497842676,-508.61892667,0.00013698,2]
[419909766,1775497842686,-530.03,0.00013698,2]
[419909767,1775497842696,-530.03,0.00013698,2]
[419909768,1775497842705,-530.03,0.00013698,2]
[419909769,1775497842714,-530.03,0.00013698,2]
[419909770,1775497842723,-530.03,0.00013698,2]
[419909771,1775497842732,-530.03,0.00013698,2]
[419909772,1775497842742,-530.03,0.00013698,2]
[419909773,1775497842751,-530.03,0.00013698,2]
[419909774,1775497842760,-530.03,0.00013698,2]
[419909775,1775497842769,-530.03,0.00013698,2]
[419909776,1775497842778,-500.0,0.00013698,2]
[419909777,1775497842787,-500.0,0.00013698,2]
[419909778,1775497842797,-559.50723655,0.00013698,2]
[419909779,1775497842807,-500.0,0.00013698,2]
[419909780,1775497842816,-500.0,0.00013698,2]
[419909781,1775497842826,-500.0,0.00013698,2]
[419909782,1775497842835,-500.0,0.00013698,2]
[419909783,1775497842844,-500.0,0.00013698,2]
[419909784,1775497842854,-500.0,0.00013698,2]
[419909785,1775497842864,-503.57594394,0.00013698,2]
[419909786,1775497842873,-228.23268139,0.00013699,2]
[419909787,1775497842883,-150.0,0.00013699,2]
[419909788,1775497842893,-150.0,0.00013699,2]
[419909789,1775497842903,-150.0,0.00013699,2]
[419909790,1775497842913,-150.0,0.00013699,2]
[419909791,1775497842922,-200.0,0.00013699,2]
[419909792,1775497842931,-166.66,0.00013699,2]
[419909793,1775497842940,-500.0,0.00013699,2]
[419909794,1775497842950,-500.51473043,0.00013699,2]
[419909795,1775497842958,-500.0,0.00013699,2]
[419909796,1775497842967,-503.55252603,0.00013699,2]
[419909797,1775497842976,-164.37135814,0.00013699,2]
[419909798,1775497842986,-500.0,0.00013699,2]
[419909799,1775497842995,-500.0,0.00013699,2]
[419909801,1775497843005,-502.32819122,0.00013699,2]
[419909802,1775497843014,-500.0,0.00013699,2]
[419909804,1775497843023,-501.47117302,0.00013699,2]
[419909805,1775497843033,-429.76417009,0.00013699,2]
[419909806,1775497843042,-352.48557695,0.00013699,2]
[419909807,1775497843053,-159.81870043,0.00013699,2]
[419909808,1775497843063,-500.0,0.00013699,2]
[419909809,1775497843073,-163.81595005,0.00013699,2]
[419909811,1775497843082,-500.0,0.00013699,2]
[419909813,1775497843091,-985.59,0.00013699,2]
[419909815,1775497843101,-1032.19,0.000137,2]
[419909817,1775497843111,-1032.19,0.000137,2]
[419909819,1775497843120,-1032.19,0.000137,2]
[419909820,1775497843129,-1032.19,0.000137,2]
[419909821,1775497843139,-1032.19,0.000137,2]
[419909822,1775497843149,-500.0,0.00013721,2]
[419909823,1775497843158,-500.0,0.00013721,2]
[419909824,1775497843169,-500.0,0.00013721,2]
[419909825,1775497843178,-500.0,0.00013721,2]
[419909826,1775497843188,-500.0,0.00013721,2]
[419909827,1775497843198,-500.0,0.00013721,2]
[419909828,1775497843208,-629.61248699,0.00013721,2]
[419909829,1775497843217,-500.0,0.00013721,2]
[419909831,1775497843226,-348.586408,0.00013721,2]
[419909833,1775497843236,-256.00425953,0.00013721,2]
[419909834,1775497843246,-500.0,0.00013721,2]
[419909835,1775497843256,-530.03,0.00013721,2]
[419909836,1775497843266,-1600.0,0.00013808,2]
[419909837,1775497843276,-3000.0,0.00013808,2]
[419909838,1775497843285,-500.90594274,0.00013833,2]
[419909839,1775497843295,-556.68829625,0.00013833,2]
[419909840,1775497843305,-166.66,0.00013836,2]
[419909841,1775497843315,-152.0,0.00013884,11]
[419909842,1775497843325,-150.0,0.00013973,2]
[419909843,1775497843336,-150.0,0.00013973,2]
[419909844,1775497843346,-150.0,0.00013973,2]
[419909845,1775497843355,-166.66,0.00013973,2]
[419909846,1775497843365,-985.59,0.00013973,2]
[419909847,1775497843375,-250.0,0.00014004,2]
[419909848,1775497843385,-855.85192254,0.00014006,2]
[419909849,1775497843395,-500.0,0.00014029,2]
[419909850,1775497843404,-152.0,0.00014093,12]
[419909851,1775497843414,-16509.52725849,0.00014099,2]
[419909852,1775497843425,-3292.0,0.00014105,2]
[419909853,1775497843435,-166.66,0.0001411,2]
[419909854,1775497843445,-161.71,0.00014116,2]
[419909855,1775497843454,-578.20924308,0.00014136,2]
[419909856,1775497843464,-200.0,0.00014136,2]
[419909857,1775497843473,-695.39793187,0.00014136,2]
[419909858,1775497843483,-500.0,0.00014136,2]
[419909859,1775497843494,-1377.42282659,0.00014136,2]
[419909860,1775497843504,-500.0,0.00014136,2]
[419909861,1775497843514,-500.0,0.00014136,2]
[419909862,1775497843524,-500.0,0.00014136,2]
[419909863,1775497843534,-500.0,0.00014136,2]
[419909864,1775497843544,-500.0,0.00014136,2]
[419909865,1775497843554,-500.0,0.00014136,2]
[419909866,1775497843563,-500.0,0.00014136,2]
[419909867,1775497843573,-500.0,0.00014136,2]
[419909868,1775497843583,-500.0,0.00014136,2]
[419909869,1775497843593,-500.0,0.00014136,2]
[419909870,1775497843603,-500.0,0.00014136,2]
[419909871,1775497843613,-500.0,0.00014136,2]
[419909872,1775497843623,-783.98949462,0.00014136,2]
[419909873,1775497843633,-174.61919141,0.00014136,2]
[419909874,1775497843643,-182.64228778,0.00014136,2]
[419909875,1775497843652,-749.3666441,0.00014136,2]
[419909876,1775497843662,-349.4458247,0.00014136,2]
[419909877,1775497843672,-27455.55370398,0.00014166,2]
[419909878,1775497843682,-418.64333016,0.00014167,2]
[419909879,1775497843692,-500.0,0.00014191,2]
[419909880,1775497843702,-962.31706574,0.00014192,2]
[419909881,1775497843711,-500.0,0.00014246,2]
[419909882,1775497843721,-150.0,0.00014247,2]
[419909883,1775497843732,-150.0,0.00014247,2]
[419909884,1775497843741,-150.0,0.00014247,2]
[419909885,1775497843751,-166.66,0.00014247,2]
[419909886,1775497843761,-1003.28349871,0.00014247,2]
[419909887,1775497843771,-1000.0,0.00014247,2]
[419909888,1775497843782,-1000.0,0.00014247,2]
[419909889,1775497843792,-501.68959435,0.00014247,2]
[419909890,1775497843802,-985.59,0.00014247,2]
[419909891,1775497843811,-962.31706574,0.00014274,2]
[419909892,1775497843823,-271.0,0.00014274,2]
[419909893,1775497843833,-271.0,0.000143,2]
[419909894,1775497843843,-500.0,0.00014301,2]
[419909895,1775497843852,-152.0,0.00014301,13]
[419909896,1775497843862,-364.30599819,0.00014314,2]
[419909897,1775497843873,-962.31706574,0.00014329,2]
[419909898,1775497843883,-500.0,0.00014356,2]
[419909899,1775497843894,-962.31706574,0.00014384,2]
[419909900,1775497843904,-166.66,0.00014384,2]
[419909901,1775497843915,-213.42825389,0.00014393,2]
[419909902,1775497843925,-2811.0,0.000144,2]
[419909903,1775497843935,-162.0,0.000144,2]
[419909904,1775497843945,-2811.0,0.000144,2]
[419909905,1775497843955,-1721.0,0.000144,2]
[419909906,1775497843965,-500.0,0.00014407,2]
[419909909,1775497843975,-500.0,0.00014407,2]
[419909911,1775497843984,-176.21304902,0.00014407,2]
[419909912,1775497843994,-500.0,0.00014407,2]
[419909913,1775497844003,-500.0,0.00014407,2]
[419909914,1775497844012,-500.0,0.00014407,2]
[419909915,1775497844022,-500.0,0.00014407,2]
[419909916,1775497844032,-530.03,0.00014407,2]
[419909917,1775497844042,-150.0,0.00014409,2]
[419909918,1775497844051,-11353.90414891,0.00014409,2]
[419909919,1775497844061,-150.0,0.00014409,2]
[419909920,1775497844071,-66638.06243498,0.00014409,2]
[419909921,1775497844080,-150.0,0.00014409,2]
[419909922,1775497844090,-7914.28291512,0.00014409,2]
[419909923,1775497844101,-500.0,0.00014411,2]
[419909924,1775497844110,-3070.00040818,0.00014414,2]
[419909925,1775497844120,-962.31706574,0.00014438,2]
[419909926,1775497844130,-1052.848,0.0001445,2]
[419909927,1775497844139,-1347.0,0.0001445,2]
[419909928,1775497844149,-622.0,0.0001445,2]
[419909929,1775497844159,-150.679,0.0001445,2]
[419909930,1775497844168,-1221.85,0.0001445,2]
[419909931,1775497844177,-1263.0,0.0001445,2]
[419909932,1775497844186,-925.0,0.0001445,2]
[419909933,1775497844195,-415.0,0.0001445,2]
[419909934,1775497844204,-6021.0,0.0001445,2]
[419909935,1775497844214,-500.0,0.00014466,2]
[419909936,1775497844223,-962.31706574,0.00014493,2]
[419909937,1775497844232,-1252.0,0.0001451,2]
[419909938,1775497844241,-152.0,0.0001451,14]
[419909939,1775497844251,-869.63,0.00014521,2]
[419909940,1775497844260,-500.0,0.00014521,2]
[419909941,1775497844270,-962.31706574,0.00014548,2]
[419909942,1775497844279,-500.0,0.00014576,2]
[419909943,1775497844288,-150.0,0.0001458,2]
[419909944,1775497844298,-347.65580151,0.00014595,2]
[419909945,1775497844307,-962.31706574,0.00014603,2]
[419909946,1775497844316,-500.0,0.00014631,2]
[419909947,1775497844326,-962.31706574,0.00014658,2]
[419909948,1775497844335,-200.0,0.00014684,2]
[419909949,1775497844344,-1428.38747117,0.00014684,2]
[419909950,1775497844354,-181.08010149,0.00014684,2]
[419909951,1775497844363,-500.0,0.00014686,2]
[419909952,1775497844372,-16509.52725849,0.000147,2]
[419909953,1775497844381,-150.0,0.000147,2]
[419909954,1775497844390,-150.0,0.000147,2]
[419909955,1775497844400,-962.31706574,0.00014712,2]
[419909956,1775497844410,-152.0,0.00014719,15]
[419909957,1775497844419,-2811.0,0.0001472,2]
[419909958,1775497844428,-1573.0,0.0001472,2]
[419909959,1775497844437,-1579.0,0.0001472,2]
[419909960,1775497844446,-2811.0,0.0001472,2]
[419909961,1775497844455,-1573.0,0.0001472,2]
[419909962,1775497844465,-2811.0,0.0001472,2]
[419909963,1775497844474,-500.0,0.00014741,2]
[419909964,1775497844484,-566.37,0.00014744,2]
[419909965,1775497844493,-27455.55370398,0.00014744,2]
[419909966,1775497844503,-962.31706574,0.00014767,2]
[419909967,1775497844514,-507.68723107,0.00014795,2]
[419909968,1775497844523,-1500.0,0.00014795,2]
[419909969,1775497844534,-211.6823,0.000148,2]
[419909970,1775497844544,-962.31706574,0.00014822,2]
[419909971,1775497844553,-2000.0,0.0001483,2]
[419909972,1775497844563,-161.71,0.00014854,2]
[419909973,1775497844572,-152.0,0.00014927,16]
[419909974,1775497844582,-500.0,0.00014958,3]
[419909975,1775497844591,-2500.0,0.00015,2]
[419909976,1775497844600,-306.0,0.00015,2]
[419909977,1775497844609,-1000.0,0.00015,2]
[419909978,1775497844619,-313.0,0.00015,2]
[419909979,1775497844628,-2402.57982361,0.00015,2]
[419909980,1775497844637,-7724.0,0.00015,15]
[419909981,1775497844646,-418.64333016,0.00015033,2]
[419909982,1775497844656,-2811.0,0.0001504,2]
[419909983,1775497844665,-162.0,0.0001504,2]
[419909984,1775497844674,-2811.0,0.0001504,2]
[419909985,1775497844684,-2811.0,0.0001504,2]
[419909986,1775497844693,-1573.0,0.0001504,2]
[419909987,1775497844702,-2811.0,0.0001504,2]
[419909988,1775497844711,-2081.0,0.0001504,2]
[419909989,1775497844720,-1691.0,0.00015052,5]
[419909990,1775497844730,-1350.0,0.00015052,5]
[419909991,1775497844739,-2000.0,0.00015058,2]
[419909992,1775497844749,-500.0,0.00015058,2]
[419909993,1775497844758,-520.81,0.00015068,2]
[419909994,1775497844768,-800.0,0.00015068,2]
[419909995,1775497844778,-295.4760607,0.00015081,2]
[419909996,1775497844787,-1550.0,0.00015091,2]
[419909997,1775497844797,-1550.0,0.00015091,2]
[419909998,1775497844806,-1550.0,0.00015091,2]
[419909999,1775497844815,-1550.0,0.00015091,2]
[419910000,1775497844826,-1550.0,0.00015091,2]
[419910001,1775497844835,-1550.0,0.00015091,2]
[419910002,1775497844845,-1550.0,0.00015091,2]
[419910003,1775497844854,-1550.0,0.00015091,2]
[419910004,1775497844864,-1550.0,0.00015091,2]
[419910005,1775497844874,-1415.0,0.00015091,2]
[419910006,1775497844883,-155.0,0.00015117,2]
[419910007,1775497844892,-152.0,0.00015136,17]
[419910008,1775497844902,-3070.00040818,0.00015157,2]
[419910009,1775497844911,-1600.0,0.00015178,2]
[419910010,1775497844920,-3000.0,0.00015178,2]
[419910011,1775497844930,-1311.204456,0.000152,2]
[419910012,1775497844939,-1148.372646,0.000152,2]
[419910013,1775497844948,-5000.0,0.000152,2]
[419910014,1775497844957,-5000.0,0.000152,2]
[419910015,1775497844966,-200.0,0.00015232,2]
[419910016,1775497844975,-1481.23780761,0.00015232,2]
[419910017,1775497844984,-187.78006525,0.00015232,2]
[419910018,1775497844993,-350.0,0.00015255,2]
[419910019,1775497845002,-350.0,0.00015271,2]
[419910020,1775497845011,-1000.0,0.0001528,2]
[419910021,1775497845020,-150.0,0.00015298,2]
[419910022,1775497845030,-16509.52725849,0.000153,2]
[419910023,1775497845039,-350.0,0.00015322,2]
[419910024,1775497845048,-151.0,0.00015322,2]
[419910025,1775497845057,-398.899206,0.00015322,2]
[419910026,1775497845067,-398.899206,0.00015322,2]
[419910027,1775497845076,-151.0,0.00015322,2]
[419910028,1775497845085,-151.0,0.00015322,2]
[419910029,1775497845095,-398.899206,0.00015322,2]
[419910030,1775497845104,-151.0,0.00015322,2]
[419910031,1775497845113,-398.899206,0.00015322,2]
[419910032,1775497845123,-361.197717,0.00015322,2]
[419910033,1775497845132,-151.0,0.00015322,2]
[419910034,1775497845142,-408.409222,0.00015322,2]
[419910035,1775497845151,-151.0,0.00015322,2]
[419910036,1775497845160,-361.197717,0.00015322,2]
[419910037,1775497845170,-408.409222,0.00015322,2]
[419910038,1775497845179,-151.0,0.00015322,2]
[419910039,1775497845188,-361.197717,0.00015322,2]
[419910040,1775497845198,-151.0,0.00015322,2]
[419910041,1775497845207,-408.409222,0.00015322,2]
[419910042,1775497845216,-361.197717,0.00015322,2]
[419910043,1775497845226,-151.0,0.00015322,2]
[419910044,1775497845235,-408.409222,0.00015322,2]
[419910045,1775497845244,-151.0,0.00015322,2]
[419910046,1775497845254,-151.0,0.00015322,2]
[419910047,1775497845263,-151.0,0.00015322,2]
[419910048,1775497845273,-151.0,0.00015322,2]
[419910049,1775497845283,-151.0,0.00015322,2]
[419910050,1775497845292,-151.0,0.00015322,2]
[419910051,1775497845302,-151.0,0.00015322,2]
[419910052,1775497845312,-151.0,0.00015322,2]
[419910053,1775497845322,-151.0,0.00015322,2]
[419910054,1775497845331,-151.0,0.00015322,2]
[419910055,1775497845341,-205.653364,0.00015322,2]
[419910056,1775497845616,-740.9655,0.00015322,2]
[419910057,1775497845654,-740.9655,0.00015322,2]
[419910058,1775497845665,-151.0,0.00015322,2]
[419910059,1775497845675,-740.9655,0.00015322,2]
[419910060,1775497845684,-740.9655,0.00015322,2]
[419910061,1775497845694,-151.0,0.00015322,2]
[419910062,1775497845703,-151.0,0.00015322,2]
[419910063,1775497845713,-151.0,0.00015322,2]
[419910064,1775497845723,-151.0,0.00015322,2]
[419910065,1775497845733,-151.0,0.00015322,2]
[419910066,1775497845743,-151.0,0.00015322,2]
[419910067,1775497845753,-217.015445,0.00015322,2]
[419910068,1775497845762,-151.0,0.00015322,2]
[419910069,1775497845771,-151.0,0.00015322,2]
[419910070,1775497845781,-217.015445,0.00015322,2]
[419910071,1775497845790,-151.0,0.00015322,2]
[419910072,1775497845800,-217.015445,0.00015322,2]
[419910073,1775497845810,-151.0,0.00015322,2]
[419910074,1775497845819,-217.015445,0.00015322,2]
[419910075,1775497845829,-151.0,0.00015322,2]
[419910076,1775497845839,-297.904091,0.00015322,2]
[419910077,1775497845848,-151.0,0.00015322,2]
[419910078,1775497845859,-327.635366,0.00015322,2]
[419910079,1775497845868,-151.0,0.00015322,2]
[419910080,1775497845878,-297.904091,0.00015322,2]
[419910081,1775497845888,-327.635366,0.00015322,2]
[419910082,1775497845898,-151.0,0.00015322,2]
[419910083,1775497845908,-164.588634,0.00015322,2]
[419910084,1775497845918,-297.904091,0.00015322,2]
[419910085,1775497845927,-327.635366,0.00015322,2]
[419910086,1775497845938,-151.0,0.00015322,2]
[419910087,1775497845947,-164.588634,0.00015322,2]
[419910088,1775497845956,-297.904091,0.00015322,2]
[419910089,1775497845966,-327.635366,0.00015322,2]
[419910090,1775497845975,-164.588634,0.00015322,2]
[419910091,1775497845984,-165.72124712,0.00015322,2]
[419910092,1775497845994,-151.0,0.00015322,2]
[419910093,1775497846003,-164.588634,0.00015322,2]
[419910094,1775497846014,-910.314917,0.00015322,2]
[419910095,1775497846023,-910.314917,0.00015322,2]
[419910097,1775497846033,-151.0,0.00015322,2]
[419910099,1775497846043,-345.475972,0.00015322,2]
[419910101,1775497846052,-151.0,0.00015322,2]
[419910103,1775497846062,-345.475972,0.00015322,2]
[419910105,1775497846071,-151.0,0.00015322,2]
[419910108,1775497846081,-345.475972,0.00015322,2]
[419910109,1775497846091,-345.475972,0.00015322,2]
[419910110,1775497846100,-910.314917,0.00015322,2]
[419910111,1775497846109,-910.314917,0.00015322,2]
[419910112,1775497846119,-151.0,0.00015322,2]
[419910113,1775497846128,-183.931815,0.00015322,2]
[419910114,1775497846138,-151.0,0.00015322,2]
[419910115,1775497846147,-151.0,0.00015322,2]
[419910116,1775497846157,-151.0,0.00015322,2]
[419910117,1775497846167,-232.102072,0.00015322,2]
[419910118,1775497846176,-232.102072,0.00015322,2]
[419910119,1775497846185,-232.102072,0.00015322,2]
[419910120,1775497846195,-232.102072,0.00015322,2]
[419910121,1775497846205,-553.482395,0.00015322,2]
[419910122,1775497846214,-1908.520882,0.00015322,2]
[419910123,1775497846224,-553.482395,0.00015322,2]
[419910124,1775497846233,-151.0,0.00015322,2]
[419910125,1775497846243,-268.8,0.00015322,2]
[419910126,1775497846253,-1908.520882,0.00015322,2]
[419910127,1775497846263,-151.0,0.00015322,2]
[419910128,1775497846272,-553.482395,0.00015322,2]
[419910129,1775497846282,-275.362629,0.00015322,2]
[419910130,1775497846291,-161.633852,0.00015322,2]
[419910131,1775497846301,-268.8,0.00015322,2]
[419910132,1775497846311,-1908.520882,0.00015322,2]
[419910133,1775497846321,-553.482395,0.00015322,2]
[419910134,1775497846331,-275.362629,0.00015322,2]
[419910135,1775497846340,-268.8,0.00015322,2]
[419910136,1775497846350,-1908.520882,0.00015322,2]
[419910137,1775497846360,-753.55201,0.00015322,2]
[419910138,1775497846370,-275.362629,0.00015322,2]
[419910139,1775497846380,-268.8,0.00015322,2]
[419910140,1775497846391,-753.55201,0.00015322,2]
[419910141,1775497846400,-151.0,0.00015322,2]
[419910142,1775497846410,-1071.012167,0.00015322,2]
[419910143,1775497846419,-753.55201,0.00015322,2]
[419910144,1775497846429,-151.0,0.00015322,2]
[419910145,1775497846439,-275.362629,0.00015322,2]
[419910146,1775497846448,-151.0,0.00015322,2]
[419910147,1775497846457,-2987.526904,0.00015322,2]
[419910148,1775497846467,-348.96767,0.00015322,2]
[419910149,1775497846476,-753.55201,0.00015322,2]
[419910150,1775497846486,-1071.012167,0.00015322,2]
[419910151,1775497846496,-151.0,0.00015322,2]
[419910152,1775497846506,-151.0,0.00015322,2]
[419910153,1775497846515,-2987.526904,0.00015322,2]
[419910154,1775497846525,-348.96767,0.00015322,2]
[419910155,1775497846535,-1071.012167,0.00015322,2]
[419910156,1775497846546,-151.0,0.00015322,2]
[419910157,1775497846556,-151.0,0.00015322,2]
[419910158,1775497846566,-151.0,0.00015322,2]
[419910159,1775497846576,-2987.526904,0.00015322,2]
[419910160,1775497846586,-348.96767,0.00015322,2]
[419910161,1775497846596,-1071.012167,0.00015322,2]
[419910162,1775497846606,-151.0,0.00015322,2]
[419910163,1775497846616,-2987.526904,0.00015322,2]
[419910164,1775497846626,-348.96767,0.00015322,2]
[419910165,1775497846636,-302.899039,0.00015322,2]
[419910166,1775497846646,-302.899039,0.00015322,2]
[419910167,1775497846656,-151.0,0.00015322,2]
[419910168,1775497846666,-151.0,0.00015322,2]
[419910169,1775497846676,-151.0,0.00015322,2]
[419910170,1775497846686,-302.899039,0.00015322,2]
[419910171,1775497846696,-151.0,0.00015322,2]
[419910172,1775497846706,-151.0,0.00015322,2]
[419910173,1775497846716,-302.899039,0.00015322,2]
[419910174,1775497846726,-151.0,0.00015322,2]
[419910175,1775497846735,-299.610638,0.00015322,2]
[419910176,1775497846744,-151.0,0.00015322,2]
[419910177,1775497846754,-151.0,0.00015322,2]
[419910178,1775497846764,-151.0,0.00015322,2]
[419910179,1775497846774,-151.0,0.00015322,2]
[419910180,1775497846783,-151.0,0.00015322,2]
[419910181,1775497846793,-151.0,0.00015322,2]
[419910182,1775497846803,-151.0,0.00015322,2]
[419910183,1775497846814,-151.0,0.00015322,2]
[419910184,1775497846824,-151.0,0.00015322,2]
[419910185,1775497846834,-151.0,0.00015322,2]
[419910186,1775497846844,-151.0,0.00015322,2]
[419910187,1775497846854,-151.0,0.00015322,2]
[419910188,1775497846863,-27455.55370398,0.00015322,2]
[419910189,1775497846873,-500.0,0.00015325,2]
[419910190,1775497846882,-500.0,0.00015325,2]
[419910191,1775497846892,-500.0,0.00015325,2]
[419910192,1775497846901,-500.0,0.00015325,2]
[419910193,1775497846911,-530.03,0.00015325,2]
[419910194,1775497846921,-1000.0,0.00015338,2]
[419910195,1775497846931,-500.0,0.00015342,2]
[419910196,1775497846941,-152.0,0.00015345,18]
[419910197,1775497846951,-350.0,0.00015353,4]
[419910198,1775497846961,-162.0,0.0001536,2]
[419910199,1775497846971,-1573.0,0.0001536,2]
[419910200,1775497846981,-162.0,0.0001536,2]
[419910201,1775497846991,-2811.0,0.0001536,2]
[419910202,1775497847001,-150.0,0.00015364,2]
[419910203,1775497847011,-350.0,0.00015383,3]
[419910204,1775497847020,-150.0,0.00015384,2]
[419910205,1775497847030,-150.0,0.000154,2]
[419910206,1775497847039,-150.0,0.000154,2]
[419910207,1775497847049,-1000.0,0.00015404,2]
[419910208,1775497847059,-1000.0,0.00015414,2]
[419910209,1775497847068,-565.0,0.00015424,2]
[419910210,1775497847079,-1496.0,0.00015424,2]
[419910211,1775497847089,-1332.9612991,0.00015431,2]
[419910212,1775497847098,-1000.0,0.00015437,2]
[419910213,1775497847108,-2402.5798236,0.0001545,2]
[419910214,1775497847117,-396.31,0.00015471,2]
[419910215,1775497847127,-772.45,0.00015471,2]
[419910216,1775497847137,-4021.56,0.00015471,2]
[419910217,1775497847146,-1000.0,0.00015481,2]
[419910218,1775497847155,-150.0,0.00015482,2]
[419910219,1775497847165,-1000.0,0.00015485,2]
[419910220,1775497847174,-350.0,0.00015494,2]
[419910221,1775497847184,-1000.0,0.00015499,2]
[419910222,1775497847194,-151.0,0.00015499,2]
[419910223,1775497847204,-151.0,0.00015499,2]
[419910224,1775497847214,-151.0,0.00015499,2]
[419910225,1775497847224,-151.0,0.00015499,2]
[419910226,1775497847234,-151.0,0.00015499,2]
[419910227,1775497847244,-151.0,0.00015499,2]
[419910228,1775497847254,-151.0,0.00015499,2]
[419910229,1775497847263,-151.0,0.00015499,2]
[419910230,1775497847273,-151.0,0.00015499,2]
[419910231,1775497847283,-266.07107,0.00015499,2]
[419910232,1775497847292,-151.0,0.00015499,2]
[419910233,1775497847302,-151.0,0.00015499,2]
[419910234,1775497847311,-151.0,0.00015499,2]
[419910235,1775497847321,-300.261063,0.00015499,2]
[419910236,1775497847330,-300.261063,0.00015499,2]
[419910237,1775497847339,-300.261063,0.00015499,2]
[419910238,1775497847348,-300.261063,0.00015499,2]
[419910239,1775497847358,-5600.0,0.000155,5]
[419910240,1775497847367,-1000.0,0.00015501,2]
[419910241,1775497847377,-4000.0,0.00015507,2]
[419910242,1775497847386,-150.0,0.00015511,2]
[419910243,1775497847396,-4609.0,0.00015515,2]
[419910244,1775497847405,-1000.0,0.00015517,2]
[419910245,1775497847415,-1000.0,0.00015523,2]
[419910246,1775497847424,-1000.0,0.00015525,2]
[419910247,1775497847434,-150.0,0.00015527,2]
[419910248,1775497847443,-1000.0,0.00015528,2]
[419910249,1775497847452,-1000.0,0.0001553,2]
[419910250,1775497847462,-1000.0,0.00015546,2]
[419910251,1775497847471,-1000.0,0.00015546,2]
[419910252,1775497847481,-1000.0,0.00015548,2]